bitfinex-derivatives/quotes_BTCF0:USTF0_20250930
["timestamp","ask_amount","ask_price","bid_price","bid_amount"]
[1759201000680,0.44497706,114470.0,114460.0,0.80381539]
[1759201000875,0.15408695,114470.0,114460.0,0.80381539]
[1759201001080,0.09379165,114470.0,114460.0,1.0756055]
[1759201001381,0.09339165,114470.0,114460.0,1.0756055]
[1759201001583,0.09379165,114470.0,114460.0,0.80381539]
[1759201001776,0.45787706,114470.0,114460.0,0.80381539]
[1759201001980,0.12779165,114470.0,114460.0,1.4816055]
[1759201002180,0.12739165,114470.0,114460.0,1.43459231]
[1759201002482,0.21508695,114470.0,114460.0,1.43459231]
[1759201002885,0.21468695,114470.0,114460.0,1.43459231]
[1759201003184,0.21508695,114470.0,114460.0,1.43459231]
[1759201003385,0.21508695,114470.0,114460.0,1.48166584]
[1759201007987,0.21508695,114470.0,114460.0,2.28362584]
[1759201009389,0.21508695,114470.0,114460.0,2.64442584]
[1759201013291,0.21508695,114470.0,114460.0,2.59735231]
[1759201014090,0.21508695,114470.0,114460.0,1.79539231]
[1759201014298,0.21508695,114470.0,114460.0,2.37263995]
[1759201016389,0.21508695,114470.0,114460.0,1.57087995]
[1759201016594,0.21508695,114470.0,114460.0,2.37255995]
[1759201017397,0.21508695,114470.0,114460.0,2.32548089]
[1759201020692,0.21508695,114470.0,114460.0,1.52380089]
[1759201020899,0.21508695,114470.0,114460.0,2.32536089]
[1759201021400,0.21508695,114470.0,114460.0,1.52380089]
[1759201021899,0.22780695,114470.0,114460.0,1.56606919]
[1759201022197,0.22780695,114470.0,114460.0,1.55230919]
[1759201022198,0.49979575,114470.0,114460.0,1.55230919]
[1759201022396,0.49979575,114470.0,114460.0,0.75074919]
[1759201022596,0.49979575,114470.0,114460.0,1.19146919]
[1759201022897,0.49979575,114470.0,114460.0,1.23859696]
[1759201023101,0.49979575,114470.0,114460.0,1.19146919]
[1759201023294,0.49979575,114470.0,114460.0,0.38994919]
[1759201023795,0.51972306,114470.0,114460.0,0.43708291]
[1759201024196,0.49979575,114470.0,114460.0,0.38994919]
[1759201029711,0.22780695,114470.0,114460.0,0.47725209]
[1759201030001,0.22780695,114470.0,114460.0,0.49087209]
[1759201030812,0.21508695,114470.0,114460.0,0.76286089]
[1759201032410,0.21508695,114470.0,114460.0,1.12366089]
[1759201032710,0.21508695,114470.0,114460.0,1.18643589]
[1759201033799,0.21508695,114470.0,114460.0,0.91444709]
[1759201034208,0.21508695,114470.0,114460.0,1.18643589]
[1759201035510,0.21512695,114470.0,114460.0,1.98763589]
[1759201035706,0.21508695,114470.0,114460.0,1.98763589]
[1759201036109,0.2328044,114470.0,114460.0,2.00833025]
[1759201036509,0.2328044,114470.0,114460.0,1.20713025]
[1759201036706,0.23242313,114470.0,114460.0,2.00829025]
[1759201037106,0.21508695,114470.0,114460.0,2.00829025]
[1759201037409,0.23242313,114470.0,114460.0,1.28669025]
[1759201037612,0.23242313,114470.0,114460.0,2.00829025]
[1759201038515,0.2325043,114470.0,114460.0,2.00829025]
[1759201039112,0.2325043,114470.0,114460.0,1.94551525]
[1759201039315,0.23249848,114470.0,114460.0,1.94551525]
[1759201039615,0.24530848,114470.0,114460.0,1.67352645]
[1759201039811,0.24530848,114470.0,114460.0,1.94551525]
[1759201040011,0.23249848,114470.0,114460.0,1.94551525]
[1759201040515,0.23288089,114470.0,114460.0,1.94551525]
[1759201041714,0.22789695,114470.0,114460.0,1.94551525]
[1759201041915,0.24560291,114470.0,114460.0,1.94551525]
[1759201042114,0.23279291,114470.0,114460.0,1.94551525]
[1759201042318,0.21508695,114470.0,114460.0,1.94551525]
[1759201043321,0.21508695,114470.0,114460.0,1.05705235]
[1759201043619,0.24560291,114470.0,114460.0,1.85809235]
[1759201044117,0.24560291,114470.0,114460.0,1.94539525]
[1759201044316,0.22789695,114470.0,114460.0,1.94539525]
[1759201044517,0.22789695,114470.0,114460.0,1.67340645]
[1759201044712,0.24545298,114470.0,114460.0,0.87236645]
[1759201045010,0.24545298,114470.0,114460.0,1.67336645]
[1759201045211,0.24535507,114470.0,114460.0,1.67336645]
[1759201046017,0.24552381,114470.0,114460.0,1.67336645]
[1759201047317,0.24536162,114470.0,114460.0,1.67336645]
[1759201047617,0.24536162,114470.0,114460.0,0.87236645]
[1759201047916,0.24536162,114470.0,114460.0,1.65966645]
[1759201048316,0.22789695,114470.0,114460.0,1.65966645]
[1759201048620,0.2457358,114470.0,114460.0,1.65966645]
[1759201049308,0.21370052,114470.0,114460.0,1.73604145]
[1759201050110,0.21370052,114470.0,114460.0,0.92152145]
[1759201050311,0.50334616,114470.0,114460.0,0.83421855]
[1759201050713,0.48568932,114470.0,114460.0,0.83421855]
[1759201050918,0.50318875,114470.0,114460.0,0.83421855]
[1759201051321,0.48568932,114470.0,114460.0,0.83421855]
[1759201051520,0.50318875,114470.0,114460.0,0.83421855]
[1759201052121,0.48568932,114470.0,114460.0,0.83421855]
[1759201052420,0.50318783,114470.0,114460.0,0.83421855]
[1759201052623,0.50329838,114470.0,114460.0,0.83421855]
[1759201053821,0.50354873,114470.0,114460.0,0.83421855]
[1759201054022,0.90354873,114470.0,114460.0,0.83421855]
[1759201055221,0.88568932,114470.0,114460.0,0.83421855]
[1759201056113,1.70396442,114470.0,114460.0,0.77144355]
[1759201056320,0.88568932,114470.0,114460.0,0.77144355]
[1759201056522,1.70637392,114470.0,114460.0,0.77144355]
[1759201056718,1.72392555,114470.0,114460.0,0.77144355]
[1759201057119,1.72392555,114470.0,114460.0,0.45780441]
[1759201057321,1.72405785,114470.0,114460.0,0.45780441]
[1759201057721,1.70637392,114470.0,114460.0,0.45780441]
[1759201057920,1.72405785,114470.0,114460.0,0.45780441]
[1759201058522,1.70637392,114470.0,114460.0,0.45780441]
[1759201059025,1.70637392,114470.0,114460.0,0.43473441]
[1759201059326,1.72378536,114470.0,114460.0,0.43473441]
[1759201059522,0.52306536,114470.0,114460.0,0.45678441]
[1759201059824,1.32365875,114470.0,114460.0,0.45678441]
[1759201060124,1.30629392,114470.0,114460.0,0.45678441]
[1759201060318,1.32365875,114470.0,114460.0,0.45678441]
[1759201060724,0.52301875,114470.0,114460.0,0.45678441]
[1759201060922,1.32365875,114470.0,114460.0,0.45678441]
[1759201061724,0.52301875,114470.0,114460.0,0.45678441]
[1759201062025,1.7240726,114470.0,114460.0,0.05324005]
[1759201062225,0.9234726,114470.0,114460.0,0.05324005]
[1759201062425,1.7240726,114470.0,114460.0,0.07529005]
[1759201062625,1.7240326,114470.0,114460.0,0.07529005]
[1759201063519,1.7240726,114470.0,114460.0,0.07529005]
[1759201065529,1.7240726,114470.0,114460.0,0.05324005]
[1759201065921,0.9234726,114470.0,114460.0,0.05324005]
[1759201066122,1.7239926,114470.0,114460.0,0.05324005]
[1759201066328,0.9234726,114470.0,114460.0,0.05324005]
[1759201066527,0.9234726,114470.0,114460.0,0.07529005]
[1759201066729,1.7239526,114470.0,114460.0,0.07529005]
[1759201068028,1.7239526,114470.0,114460.0,0.05324005]
[1759201068619,0.9234726,114470.0,114460.0,0.05324005]
[1759201068819,1.7239126,114470.0,114460.0,0.05324005]
[1759201069327,1.7239126,114470.0,114460.0,0.00607919]
[1759201069633,0.9234726,114470.0,114460.0,0.00607919]
[1759201069929,1.7239126,114470.0,114460.0,0.00607919]
[1759201074235,1.99613738,114470.0,114460.0,0.00607919]
[1759201076637,1.19569738,114470.0,114460.0,0.02857919]
[1759201076839,1.32387059,114470.0,114460.0,0.11588199]
[1759201077031,1.32347059,114470.0,114460.0,0.11588199]
[1759201077431,1.32387059,114470.0,114460.0,0.16304285]
[1759201079236,1.32387059,114470.0,114460.0,0.11588199]
[1759201079737,1.59597738,114470.0,114460.0,0.11588199]
[1759201080334,1.32387059,114470.0,114460.0,0.11588199]
[1759201080532,1.59597738,114470.0,114460.0,0.11588199]
[1759201080738,1.59557738,114470.0,114460.0,0.11588199]
[1759201080942,1.59597738,114470.0,114460.0,0.11588199]
[1759201082642,1.59597738,114470.0,114460.0,0.00607919]
[1759201083141,1.59597738,114470.0,114460.0,0.02857919]
[1759201083341,1.59597738,114470.0,114460.0,0.07574005]
[1759201083844,1.59597738,114470.0,114460.0,0.05324005]
[1759201084135,1.59597738,114470.0,114460.0,0.00607919]
[1759201084337,1.59597738,114470.0,114460.0,0.07574005]
[1759201085040,1.56897738,114470.0,114460.0,0.06974005]
[1759201085340,1.59197738,114470.0,114460.0,0.06974005]
[1759201088144,1.59173738,114470.0,114460.0,0.15704285]
[1759201089241,1.59173738,114470.0,114460.0,0.10988199]
[1759201089445,1.59169738,114470.0,114460.0,0.10988199]
[1759201090041,0.79169738,114470.0,114460.0,0.10988199]
[1759201090239,0.2474838,114470.0,114460.0,0.10988199]
[1759201090435,1.59165738,114470.0,114460.0,0.10988199]
[1759201090832,0.51959059,114470.0,114460.0,0.10988199]
[1759201091038,1.59125728,114470.0,114460.0,0.47068199]
[1759201091244,0.1469785,114470.0,114460.0,1.15544878]
[1759201091447,0.13949493,114470.0,114460.0,1.47471643]
[1759201091646,0.13909493,114470.0,114460.0,1.47471643]
[1759201091845,0.12489812,114470.0,114460.0,1.47471643]
[1759201092046,0.12529812,114470.0,114460.0,1.47471643]
[1759201092544,0.21259332,114470.0,114460.0,1.38741363]
[1759201092946,0.21259332,114470.0,114460.0,1.47471633]
[1759201097954,0.21259312,114470.0,114460.0,1.47471633]
[1759201098153,0.19262852,114470.0,114460.0,1.47471633]
[1759201098756,0.10533352,114470.0,114460.0,1.47471633]
[1759201098959,0.12527235,114470.0,114460.0,1.47471633]
[1759201099152,0.10493352,114470.0,114460.0,1.47471633]
[1759201099356,0.10533352,114470.0,114460.0,1.49033047]
[1759201099657,0.10493352,114470.0,114460.0,1.49033047]
[1759201100052,0.10533352,114470.0,114460.0,1.49033047]
[1759201100756,0.10533352,114470.0,114460.0,0.94611689]
[1759201100945,0.10533352,114470.0,114460.0,1.49033047]
[1759201101150,0.10533352,114470.0,114460.0,2.29001047]
[1759201101958,0.10533352,114470.0,114460.0,1.49033047]
[1759201102156,0.10533352,114470.0,114460.0,2.28997047]
[1759201102657,0.10533352,114470.0,114460.0,1.49033047]
[1759201102955,0.10533352,114470.0,114460.0,2.28997047]
[1759201103145,0.10533352,114470.0,114460.0,2.22719547]
[1759201104461,0.10533352,114470.0,114460.0,2.28997047]
[1759201107458,0.10533352,114470.0,114460.0,2.28981047]
[1759201107658,0.10493352,114470.0,114460.0,1.49033047]
[1759201107851,0.10493352,114470.0,114460.0,2.28981047]
[1759201108056,0.10533352,114470.0,114460.0,2.28981047]
[1759201108356,0.10493352,114470.0,114460.0,2.28981047]
[1759201108558,0.10533352,114470.0,114460.0,2.28981047]
[1759201108760,0.0008,114490.0,114480.0,0.1212863]
[1759201108959,0.0008,114490.0,114480.0,1.84570313]
[1759201109159,0.75153911,114510.0,114500.0,0.1212711]
[1759201109361,0.75153911,114510.0,114500.0,0.41333705]
[1759201109658,0.39073911,114510.0,114500.0,0.41333705]
[1759201110059,0.39073911,114510.0,114500.0,0.41348149]
[1759201110260,0.46904647,114510.0,114500.0,0.77428149]
[1759201110959,0.38778307,114510.0,114500.0,0.77428149]
[1759201111451,0.11567628,114510.0,114500.0,0.77428149]
[1759201111762,0.38178307,114510.0,114500.0,0.75417789]
[1759201111958,0.39042488,114510.0,114500.0,0.75417789]
[1759201112160,0.10967628,114510.0,114500.0,1.04627541]
[1759201112363,0.11007628,114510.0,114500.0,0.77416862]
[1759201112559,0.11007628,114510.0,114500.0,0.77438983]
[1759201112866,0.10967628,114510.0,114500.0,1.02628468]
[1759201113059,0.11007628,114510.0,114500.0,1.02628468]
[1759201113259,0.10967628,114510.0,114500.0,1.02628468]
[1759201113660,0.11007628,114510.0,114500.0,1.02628468]
[1759201113963,0.11007628,114510.0,114500.0,1.04649662]
[1759201114364,0.11007628,114510.0,114500.0,1.84577662]
[1759201114564,0.11807628,114510.0,114500.0,1.05149662]
[1759201114864,0.11807628,114510.0,114500.0,1.85073662]
[1759201115059,0.11807628,114510.0,114500.0,1.83052468]
[1759201116065,0.11807628,114510.0,114500.0,1.85067764]
[1759201116466,0.11807628,114510.0,114500.0,1.83052468]
[1759201116667,0.11807628,114510.0,114500.0,1.8511602]
[1759201116862,0.11807628,114510.0,114500.0,1.83052468]
[1759201117065,0.11807628,114510.0,114500.0,1.8511602]
[1759201117366,0.11807628,114510.0,114500.0,1.85104579]
[1759201117663,0.20534048,114510.0,114500.0,1.05180579]
[1759201117968,0.20534048,114510.0,114500.0,1.85096579]
[1759201119161,0.20534048,114510.0,114500.0,1.05180579]
[1759201119366,0.20534048,114510.0,114500.0,1.83040468]
[1759201119668,0.20534048,114510.0,114500.0,1.03128468]
[1759201119968,0.20534048,114510.0,114500.0,1.85040452]
[1759201120262,0.20534048,114510.0,114500.0,0.3998]
[1759201120460,0.49078727,114510.0,114500.0,0.41983984]
[1759201120660,0.49078727,114510.0,114500.0,1.21887984]
[1759201120865,0.49078727,114510.0,114500.0,1.49098663]
[1759201121261,0.49078727,114510.0,114500.0,0.69194663]
[1759201121466,0.49078727,114510.0,114500.0,0.69238708]
[1759201121865,0.89078727,114510.0,114500.0,0.40734029]
[1759201122068,0.89078727,114510.0,114500.0,0.40722399]
[1759201122474,0.89078727,114510.0,114500.0,0.38686]
[1759201122767,2.34257622,114510.0,114500.0,0.005]
[1759201122973,2.34257622,114510.0,114500.0,0.02559054]
[1759201123867,2.34257622,114510.0,114500.0,0.02531883]
[1759201124766,0.82340523,114510.0,114500.0,0.13365063]
[1759201124974,1.62236523,114510.0,114500.0,0.4741318]
[1759201125969,0.13795844,114510.0,114500.0,1.05192007]
[1759201126166,0.11767628,114510.0,114500.0,1.05192007]
[1759201126366,0.09657628,114510.0,114500.0,1.05192007]
[1759201126874,0.09617628,114510.0,114500.0,1.05192007]
[1759201127076,0.09657628,114510.0,114500.0,2.25086241]
[1759201127371,0.09676163,114510.0,114500.0,2.25086241]
[1759201127567,0.07879815,114510.0,114500.0,2.25086241]
[1759201127968,0.09635887,114510.0,114500.0,2.25086241]
[1759201128168,0.07919815,114510.0,114500.0,2.25086241]
[1759201128674,0.09713615,114510.0,114500.0,2.25086241]
[1759201128874,0.07919815,114510.0,114500.0,2.25086241]
[1759201129075,0.09713615,114510.0,114500.0,2.25086241]
[1759201130770,0.07919815,114510.0,114500.0,2.25086241]
[1759201131874,0.09666427,114510.0,114500.0,2.25086241]
[1759201132175,0.02586612,114510.0,114500.0,2.25086241]
[1759201132366,0.02623893,114510.0,114500.0,2.25070241]
[1759201132674,0.02583893,114510.0,114500.0,1.45194241]
[1759201132871,0.02623893,114510.0,114500.0,2.25070241]
[1759201133073,0.0084,114510.0,114500.0,2.25070241]
[1759201133378,0.0084,114510.0,114500.0,1.45194241]
[1759201133674,0.0084,114510.0,114500.0,2.25070241]
[1759201133876,0.0084,114510.0,114500.0,1.45194241]
[1759201134074,0.0084,114510.0,114500.0,2.25066241]
[1759201134277,0.02631732,114510.0,114500.0,2.25066241]
[1759201134477,0.0084,114510.0,114500.0,2.25066241]
[1759201134878,0.02629785,114510.0,114500.0,2.25066241]
[1759201135176,0.0084,114510.0,114500.0,2.25066241]
[1759201135475,0.02629785,114510.0,114500.0,2.25066241]
[1759201135876,0.02629785,114510.0,114500.0,1.45194241]
[1759201136074,0.02629785,114510.0,114500.0,1.05194241]
[1759201136376,0.0084,114510.0,114500.0,1.57818406]
[1759201137077,0.0084,114510.0,114500.0,0.77950406]
[1759201137278,0.0084,114510.0,114500.0,1.57814406]
[1759201137575,0.02575681,114510.0,114500.0,1.57814406]
[1759201137878,0.0084,114510.0,114500.0,1.57814406]
[1759201138078,0.02580924,114510.0,114500.0,1.57814406]
[1759201138281,0.04812924,114510.0,114500.0,1.57810406]
[1759201138579,0.04863687,114510.0,114500.0,1.57810406]
[1759201139372,0.13590107,114510.0,114500.0,1.62512134]
[1759201139571,0.1179842,114510.0,114500.0,0.82652134]
[1759201139772,0.1179842,114510.0,114500.0,1.62508134]
[1759201140279,0.1179842,114510.0,114500.0,0.82652134]
[1759201140479,0.13547496,114510.0,114500.0,1.62508134]
[1759201140875,0.1179842,114510.0,114500.0,1.62508134]
[1759201141078,0.0257481,114510.0,114500.0,1.62508134]
[1759201141479,0.0084,114510.0,114500.0,1.62508134]
[1759201141980,0.0257481,114510.0,114500.0,1.62508134]
[1759201142175,0.02577782,114510.0,114500.0,1.62508134]
[1759201142680,0.0084,114510.0,114500.0,1.62508134]
[1759201143881,0.02577782,114510.0,114500.0,1.62508134]
[1759201145578,0.02603919,114510.0,114500.0,1.62508134]
[1759201146284,0.02563919,114510.0,114500.0,1.62508134]
[1759201146472,0.0084,114510.0,114500.0,1.62508134]
[1759201146983,0.02620212,114510.0,114500.0,1.62508134]
[1759201148282,0.0084,114510.0,114500.0,1.62508134]
[1759201149383,0.02573049,114510.0,114500.0,1.62508134]
[1759201150084,0.02602779,114510.0,114500.0,1.62508134]
[1759201151684,0.02590601,114510.0,114500.0,1.57806406]
[1759201152783,0.02609508,114510.0,114500.0,1.57806406]
[1759201152985,0.0084,114510.0,114500.0,1.57806406]
[1759201153186,0.02609508,114510.0,114500.0,1.64078297]
[1759201153586,0.02609508,114510.0,114500.0,1.64046297]
[1759201153789,0.02609508,114510.0,114500.0,0.84222297]
[1759201153987,0.02595808,114510.0,114500.0,1.64046297]
[1759201155387,0.0084,114510.0,114500.0,1.64046297]
[1759201156088,0.0084,114510.0,114500.0,1.9122382]
[1759201156089,0.02583174,114510.0,114500.0,1.9122382]
[1759201156590,0.02543174,114510.0,114500.0,1.9122382]
[1759201156788,0.02543174,114510.0,114500.0,1.64046297]
[1759201157084,0.008,114510.0,114500.0,1.64046297]
[1759201157390,0.02585426,114510.0,114500.0,1.64046297]
[1759201157590,0.02618771,114510.0,114500.0,1.9122382]
[1759201158584,0.0084,114510.0,114500.0,1.9122382]
[1759201158784,0.02612464,114510.0,114500.0,1.1139982]
[1759201158984,0.0084,114510.0,114500.0,1.64034297]
[1759201159187,0.02612464,114510.0,114500.0,1.36856774]
[1759201159385,0.02612464,114510.0,114500.0,1.64034297]
[1759201159986,0.0084,114510.0,114500.0,1.64034297]
[1759201160988,0.0084,114510.0,114500.0,1.9121182]
[1759201161188,0.01450153,114510.0,114500.0,1.84939929]
[1759201162090,0.1109639,114530.0,114520.0,0.1240166]
[1759201162286,0.13091848,114530.0,114520.0,0.82433116]
[1759201162891,0.02075458,114530.0,114520.0,1.62241116]
[1759201163092,0.10720358,114530.0,114520.0,1.62241116]
[1759201163391,0.10760358,114530.0,114520.0,1.60175518]
[1759201163590,0.12508599,114530.0,114520.0,1.62216419]
[1759201163791,0.12908599,114530.0,114520.0,1.63016419]
[1759201164092,0.13608599,114530.0,114520.0,1.63816419]
[1759201164493,0.11613141,114530.0,114520.0,1.64688037]
[1759201164792,0.11613141,114530.0,114520.0,1.65925628]
[1759201164990,0.10513141,114530.0,114520.0,1.65125628]
[1759201165184,0.10513141,114530.0,114520.0,1.6425401]
[1759201165393,0.17330015,114530.0,114520.0,1.6425401]
[1759201165588,0.19621015,114530.0,114520.0,1.6424201]
[1759201165989,0.19921015,114530.0,114520.0,1.6554201]
[1759201166195,0.19921015,114530.0,114520.0,0.8574601]
[1759201166693,0.19921015,114530.0,114520.0,1.63504419]
[1759201167194,0.19921015,114530.0,114520.0,0.83708419]
[1759201167397,0.19921015,114530.0,114520.0,1.36322896]
[1759201167594,0.19921015,114530.0,114520.0,0.83708419]
[1759201167789,0.19921015,114530.0,114520.0,0.85702647]
[1759201168196,0.19921015,114530.0,114520.0,1.65535632]
[1759201168395,0.19921015,114530.0,114520.0,1.65531632]
[1759201168797,0.18172774,114530.0,114520.0,1.63496419]
[1759201169194,0.18172774,114530.0,114520.0,0.83708419]
[1759201169401,0.20166935,114530.0,114520.0,1.63496419]
[1759201170301,0.20166935,114530.0,114520.0,0.83708419]
[1759201170498,0.20166935,114530.0,114520.0,1.63492419]
[1759201170698,0.20166935,114530.0,114520.0,0.83708419]
[1759201170899,0.20166935,114530.0,114520.0,1.63492419]
[1759201171702,0.20166935,114530.0,114520.0,0.83708419]
[1759201172003,0.20166935,114530.0,114520.0,1.63488419]
[1759201178210,0.60166935,114530.0,114520.0,1.63488419]
[1759201179213,0.60166935,114530.0,114520.0,1.58780084]
[1759201179513,0.20166935,114530.0,114520.0,1.58780084]
[1759201185314,0.20166935,114530.0,114520.0,1.50054424]
[1759201185703,0.20166935,114530.0,114520.0,1.58780074]
[1759201189320,0.20166935,114530.0,114520.0,1.63488409]
[1759201190319,0.88684458,114530.0,114520.0,0.10328236]
[1759201190519,0.60166935,114530.0,114520.0,0.11593236]
[1759201190715,0.20166935,114530.0,114520.0,0.83576409]
[1759201191622,0.20126935,114530.0,114520.0,0.83576409]
[1759201192023,0.20166935,114530.0,114520.0,0.83576409]
[1759201192224,0.20126935,114530.0,114520.0,0.83576409]
[1759201192525,0.17875935,114530.0,114520.0,0.83576409]
[1759201192828,0.17835935,114530.0,114520.0,0.83576409]
[1759201193126,0.17875935,114530.0,114520.0,0.83576409]
[1759201198233,0.17875935,114530.0,114520.0,1.1073872]
[1759201199032,0.17875935,114530.0,114520.0,1.9046272]
[1759201200436,0.17875935,114530.0,114520.0,1.9045872]
[1759201201639,0.17875935,114530.0,114520.0,1.1073872]
[1759201201834,0.17875935,114530.0,114520.0,1.9045872]
[1759201202035,0.17875935,114530.0,114520.0,1.1073872]
[1759201202235,0.20193935,114530.0,114520.0,1.0201307]
[1759201202740,0.20193935,114530.0,114520.0,1.9045472]
[1759201202938,0.20193935,114530.0,114520.0,1.1073872]
[1759201203139,0.20193935,114530.0,114520.0,1.9045472]
[1759201204441,0.17875935,114530.0,114520.0,1.9045472]
[1759201208145,0.003,114530.0,114520.0,2.52916302]
[1759201208434,0.0872459,114540.0,114530.0,0.1226389]
[1759201208637,0.0872459,114540.0,114530.0,1.08960385]
[1759201208841,0.0872459,114540.0,114530.0,1.88664385]
[1759201209142,0.0876459,114540.0,114530.0,1.61494468]
[1759201209340,0.0876459,114540.0,114530.0,1.55217807]
[1759201209744,0.0876459,114540.0,114530.0,1.56217807]
[1759201209944,0.0906459,114540.0,114530.0,1.62494468]
[1759201210133,0.0906459,114540.0,114530.0,0.82790468]
[1759201210336,0.0906459,114540.0,114530.0,1.56213807]
[1759201210542,0.0876459,114540.0,114530.0,1.55213807]
[1759201210945,0.1086459,114540.0,114530.0,1.55713807]
[1759201211146,0.1086459,114540.0,114530.0,1.82883724]
[1759201211533,0.17992111,114540.0,114530.0,1.82883724]
[1759201211844,0.17992111,114540.0,114530.0,1.55713807]
[1759201213245,0.17992111,114540.0,114530.0,1.60417842]
[1759201214744,0.20310111,114540.0,114530.0,0.80717842]
[1759201215047,0.20310111,114540.0,114530.0,1.60405842]
[1759201215450,0.20310111,114540.0,114530.0,1.87575759]
[1759201215742,0.20310111,114540.0,114530.0,1.60405842]
[1759201215943,0.47480028,114540.0,114530.0,1.60401842]
[1759201216146,0.20310111,114540.0,114530.0,1.60401842]
[1759201216649,0.20310111,114540.0,114530.0,1.55697807]
[1759201216851,0.20310111,114540.0,114530.0,0.76013807]
[1759201217055,0.20310111,114540.0,114530.0,1.55697807]
[1759201218851,0.20310111,114540.0,114530.0,1.60401089]
[1759201219351,0.22302986,114540.0,114530.0,1.55697807]
[1759201222940,0.22302986,114540.0,114530.0,0.67288917]
[1759201223146,0.22302986,114540.0,114530.0,1.46960917]
[1759201224952,0.24035799,114540.0,114530.0,1.48979299]
[1759201225153,0.24035799,114540.0,114530.0,1.46960917]
[1759201225370,0.24035799,114540.0,114530.0,1.49031518]
[1759201226366,0.24035799,114540.0,114530.0,1.537348]
[1759201226568,0.24035799,114540.0,114530.0,1.49003687]
[1759201227455,0.24035799,114540.0,114530.0,1.53660402]
[1759201227655,0.24035799,114540.0,114530.0,0.73988402]
[1759201227959,0.24035799,114540.0,114530.0,1.26478485]
[1759201228163,0.24035799,114540.0,114530.0,1.53648402]
[1759201229161,0.24035799,114540.0,114530.0,1.51652199]
[1759201229369,0.22042924,114540.0,114530.0,1.53714961]
[1759201230269,0.22042924,114540.0,114530.0,1.62439851]
[1759201230567,0.22042924,114540.0,114530.0,1.62399425]
[1759201231366,0.49212841,114540.0,114530.0,1.62399425]
[1759201231571,0.22042924,114540.0,114530.0,1.62399425]
[1759201231866,0.22042924,114540.0,114530.0,1.62433153]
[1759201232062,0.22042924,114540.0,114530.0,1.60377089]
[1759201232569,0.22042924,114540.0,114530.0,1.62433153]
[1759201233671,0.22042924,114540.0,114530.0,1.62403333]
[1759201234267,0.20310111,114540.0,114530.0,1.55673807]
[1759201234466,0.22059547,114540.0,114530.0,1.57723731]
[1759201234668,0.22095594,114540.0,114530.0,1.5771639]
[1759201236776,0.22047218,114540.0,114530.0,1.57683685]
[1759201237073,0.20310111,114540.0,114530.0,1.55673807]
[1759201237274,0.22047218,114540.0,114530.0,1.63954728]
[1759201239775,0.22051249,114540.0,114530.0,1.63976268]
[1759201240071,0.22051249,114540.0,114530.0,1.6194485]
[1759201240275,0.22051249,114540.0,114530.0,1.63976268]
[1759201242277,0.22058382,114540.0,114530.0,1.64001657]
[1759201244172,0.20310111,114540.0,114530.0,1.6194485]
[1759201244375,0.221068,114540.0,114530.0,1.36820241]
[1759201244580,0.221068,114540.0,114530.0,1.63990158]
[1759201246281,0.20310111,114540.0,114530.0,1.6194485]
[1759201246480,0.22072174,114540.0,114530.0,1.63966869]
[1759201247280,0.20310111,114540.0,114530.0,1.6194485]
[1759201247477,0.22072174,114540.0,114530.0,1.63966869]
[1759201248276,0.24075108,114540.0,114530.0,1.57695826]
[1759201248679,0.24082263,114540.0,114530.0,1.57726791]
[1759201249080,0.22313045,114540.0,114530.0,1.55673807]
[1759201249276,1.18422097,114540.0,114530.0,0.42171984]
[1759201249484,1.19786097,114540.0,114530.0,0.09541923]
[1759201249881,1.19786097,114540.0,114530.0,0.07488849]
[1759201250084,1.99402097,114540.0,114530.0,0.09543558]
[1759201250473,2.62652014,114540.0,114530.0,0.005]
[1759201250673,2.62652014,114540.0,114530.0,0.02554776]
[1759201250982,2.65788632,114540.0,114530.0,0.02495344]
[1759201251178,2.7049356,114540.0,114530.0,0.02344632]
[1759201251378,0.3028965,114530.0,114520.0,0.02040901]
[1759201251584,1.22712418,114530.0,114520.0,0.02040901]
[1759201251776,1.65849036,114530.0,114520.0,0.02040901]
[1759201251977,0.023,114500.0,114490.0,0.53191329]
[1759201252178,0.57838323,114500.0,114490.0,0.55254491]
[1759201253387,0.57838323,114500.0,114490.0,0.55234081]
[1759201253687,0.57638323,114500.0,114490.0,0.55234081]
[1759201253887,0.30468406,114500.0,114490.0,0.82403998]
[1759201254391,0.30968406,114500.0,114490.0,0.77889149]
[1759201254699,0.30968406,114500.0,114490.0,0.75846397]
[1759201254986,0.30368406,114500.0,114490.0,0.75846397]
[1759201255590,0.37272928,114500.0,114490.0,0.75846397]
[1759201255889,0.36772928,114500.0,114490.0,0.75646397]
[1759201256089,0.37372928,114500.0,114490.0,0.76346397]
[1759201256790,0.38240452,114500.0,114490.0,0.76346397]
[1759201257391,0.37372928,114500.0,114490.0,0.76346397]
[1759201258092,0.38264256,114500.0,114490.0,0.76346397]
[1759201258288,0.11094339,114500.0,114490.0,0.4917648]
[1759201258490,0.10203011,114500.0,114490.0,0.4917648]
[1759201258792,0.08404522,114500.0,114490.0,0.4917648]
[1759201260294,0.08404522,114500.0,114490.0,0.7636672]
[1759201261894,0.08404522,114500.0,114490.0,0.4917648]
[1759201262094,0.08404522,114500.0,114490.0,0.7636672]
[1759201264792,0.44321952,114500.0,114490.0,0.40449]
[1759201264990,0.84321952,114500.0,114490.0,0.4917695]
[1759201265389,1.63941952,114500.0,114490.0,0.4917695]
[1759201265587,1.63941952,114500.0,114490.0,0.04369]
[1759201265998,1.63941952,114500.0,114490.0,0.1309695]
[1759201267001,1.63941952,114500.0,114490.0,0.04369]
[1759201267599,2.01123952,114500.0,114490.0,0.007]
[1759201269207,1.75928777,114500.0,114490.0,0.007]
[1759201269399,2.03119017,114500.0,114490.0,0.007]
[1759201269701,1.23499017,114500.0,114490.0,0.007]
[1759201269902,2.03119017,114500.0,114490.0,0.007]
[1759201275318,0.96308777,114500.0,114490.0,0.03026]
[1759201275524,1.22397017,114500.0,114490.0,0.04347]
[1759201275712,2.02017017,114500.0,114490.0,0.04347]
[1759201277615,1.22397017,114500.0,114490.0,0.04347]
[1759201277821,2.02017017,114500.0,114490.0,0.04347]
[1759201280022,1.74826777,114500.0,114490.0,0.04347]
[1759201280217,2.02017017,114500.0,114490.0,0.04347]
[1759201281123,0.19126777,114500.0,114490.0,0.6761724]
[1759201281322,1.25941017,114500.0,114490.0,0.04347]
[1759201281512,1.25941017,114500.0,114490.0,0.03026]
[1759201281718,1.25981017,114500.0,114490.0,0.03026]
[1759201282521,1.25981017,114500.0,114490.0,0.04345]
[1759201282717,1.62061017,114500.0,114490.0,0.04345]
[1759201283419,1.62061017,114500.0,114490.0,0.007]
[1759201284014,1.62061017,114500.0,114490.0,0.02848]
[1759201284416,1.62061017,114500.0,114490.0,0.04167]
[1759201286626,2.05197635,114500.0,114490.0,1e-07]
[1759201287125,0.087287,114480.0,114470.0,0.01343]
[1759201287331,0.087287,114480.0,114460.0,0.39578919]
[1759201287332,0.1088946,114470.0,114460.0,0.39578919]
[1759201287525,0.380797,114470.0,114460.0,0.39578919]
[1759201288030,0.1088946,114470.0,114460.0,0.39578919]
[1759201288326,0.380797,114470.0,114460.0,0.39578919]
[1759201288728,0.386797,114470.0,114460.0,0.39578919]
[1759201289119,0.374797,114470.0,114460.0,0.39578919]